bitfinex/quotes_SOLUSD_20240902
["timestamp","ask_amount","ask_price","bid_price","bid_amount"]
[1725251840582,21.3543,129.24,129.21,27.0867]
[1725251840758,22.89792612,129.24,129.21,27.0867]
[1725251841365,21.3543,129.24,129.21,27.0867]
[1725251841895,24.20220695,129.27,129.23,7.738]
[1725251842180,29.28002612,129.26,129.22,7.7387]
[1725251842884,21.54362612,129.26,129.22,7.7387]
[1725251846687,31.23086856,129.26,129.23,7.738]
[1725251847586,31.23086856,129.26,129.22,7.7386]
[1725251849380,29.68724244,129.26,129.23,7.7378]
[1725251849581,1.54362612,129.25,129.23,7.7378]
[1725251849789,21.54362612,129.26,129.19,16.3677]
[1725251849990,17.42464244,129.25,129.2,45.0]
[1725251850299,9.68724244,129.25,129.2,64.3493]
[1725251850869,9.68724244,129.23,129.2,64.3493]
[1725251851367,9.68724244,129.23,129.21,7.7392]
[1725251854986,1.54362612,129.22,129.2,19.3493]
[1725251855298,9.68724244,129.21,129.18,7.741]
[1725251856970,1.54362612,129.2,129.17,27.0953]
[1725251857382,1.54362612,129.2,129.18,7.741]
[1725251858304,9.68724244,129.21,129.18,7.741]
[1725251858305,11.23086856,129.21,129.18,7.741]
[1725251859382,9.68724244,129.21,129.18,7.741]
[1725251860585,1.54362612,129.2,129.18,7.741]
[1725251861087,11.23086856,129.21,129.18,7.741]
[1725251861484,1.54362612,129.21,129.19,7.74]
[1725251861681,9.68724244,129.21,129.19,7.74]
[1725251862101,9.68724244,129.21,129.18,7.7409]
[1725251870005,23.42472612,129.23,129.19,7.7405]
[1725251870404,23.42472612,129.23,129.19,9.28837144]
[1725251870788,23.42472612,129.23,129.19,7.7405]
[1725251872007,9.68724244,129.22,129.19,7.7405]
[1725251872193,1.54362612,129.21,129.19,7.7405]
[1725251872889,1.54362612,129.21,129.18,7.741]
[1725251873090,11.23086856,129.22,129.18,7.741]
[1725251876315,30.7175315,129.23,129.19,7.7402]
[1725251876620,32.26115762,129.23,129.19,7.7402]
[1725251877210,30.7175315,129.23,129.2,7.7398]
[1725251878206,23.70082612,129.26,129.22,7.7387]
[1725251878514,22.1572,129.23,129.12,20.65084169]
[1725251878726,17.43064244,129.15,129.06,20.65084169]
[1725251879013,17.43064244,129.15,129.08,19.3676]
[1725251879014,9.68724244,129.13,129.08,19.3676]
[1725251879221,9.28832612,129.12,129.08,19.3676]
[1725251879524,1.54362612,129.12,129.08,27.1143]
[1725251880202,1.54362612,129.12,129.08,19.3676]
[1725251880612,9.68724244,129.11,129.08,27.1146]
[1725251881125,9.68724244,129.12,129.09,7.7463]
[1725251881824,9.68724244,129.12,129.1,7.7457]
[1725251882606,8.8364315,129.14,129.11,64.3632]
[1725251882798,31.84444244,129.15,129.12,7.7447]
[1725251882998,9.68724244,129.13,129.11,19.3632]
[1725251883710,18.52367394,129.13,129.11,19.3632]
[1725251884224,8.8364315,129.13,129.11,27.1085]
[1725251884407,18.52367394,129.13,129.11,27.1085]
[1725251885505,18.52367394,129.13,129.11,19.3632]
[1725251887319,18.52367394,129.13,129.09,7.7464]
[1725251888119,18.52367394,129.13,129.07,19.368]
[1725251888120,18.52367394,129.13,129.1,52.7456]
[1725251888327,9.68724244,129.11,129.07,19.368]
[1725251888930,8.8364315,129.13,129.09,19.3651]
[1725251889127,18.52367394,129.13,129.09,19.3651]
[1725251889334,9.68724244,129.11,129.09,19.3651]
[1725251890333,9.68724244,129.11,129.09,27.1115]
[1725251890916,9.68724244,129.11,129.1,7.7459]
[1725251891116,11.23086856,129.12,129.1,7.7459]
[1725251891323,9.68724244,129.12,129.1,7.7459]
[1725251894845,1.54362612,129.13,129.1,7.7459]
[1725251895025,9.68724244,129.12,129.1,7.7459]
[1725251895838,9.68724244,129.12,129.09,27.1114]
[1725251896246,1.54362612,129.11,129.09,19.3651]
[1725251896424,9.68724244,129.12,129.09,27.1114]
[1725251897031,1.54362612,129.11,129.09,27.1114]
[1725251897624,11.23086856,129.12,129.09,27.1114]
[1725251897927,9.68724244,129.11,129.09,27.1114]
[1725251899144,22.1572,129.15,129.1,45.0]
[1725251899435,9.68724244,129.15,129.1,99.3708]
[1725251899647,9.68724244,129.15,129.12,7.7442]
[1725251899812,1.54362612,129.14,129.12,7.7442]
[1725251900233,11.23086856,129.15,129.12,7.7442]
[1725251901128,1.54362612,129.14,129.12,7.7442]
[1725251901328,1.54362612,129.14,129.1,80.0057]
[1725251901531,11.23086856,129.15,129.1,80.0057]
[1725251901727,1.54362612,129.14,129.1,80.0057]
[1725251901937,1.54362612,129.14,129.1,60.6416]
[1725251902129,1.54362612,129.14,129.07,50.1055]
[1725251902130,9.68724244,129.13,129.07,50.1055]
[1725251902447,9.68724244,129.11,129.07,16.4572]
[1725251902831,17.43274244,129.11,129.07,16.4572]
[1725251903238,17.43274244,129.11,129.05,7.7488]
[1725251903444,7.7465,129.09,129.04,50.0116]
[1725251903744,17.43374244,129.09,129.04,35.8304]
[1725251903951,9.29082612,129.08,129.04,16.4572]
[1725251904126,7.7478,129.07,129.04,16.4572]
[1725251905233,1.54362612,129.06,129.0,16.5763]
[1725251905426,9.68724244,129.03,128.98,19.3825]
[1725251905825,9.81273244,129.05,128.94,25.8165]
[1725251905826,9.68724244,129.01,128.94,25.8165]
[1725251906153,27.7524,129.0,128.95,7.7548]
[1725251906354,17.43964244,129.0,128.94,19.3883]
[1725251906556,17.43964244,129.0,128.95,7.7549]
[1725251906734,17.43964244,129.0,128.94,27.1437]
[1725251906735,1.54362612,128.99,128.94,27.1437]
[1725251907442,9.29632612,128.99,128.94,19.3883]
[1725251907655,1.54362612,128.99,128.94,27.1438]
[1725251908023,7.7517,129.01,128.94,19.3883]
[1725251908228,25.86710963,129.02,128.96,7.7543]
[1725251908540,29.29502612,129.01,128.96,7.7543]
[1725251909127,29.29502612,129.01,128.97,45.0]
[1725251909643,29.29502612,129.01,128.96,45.0]
[1725251909851,29.29502612,129.01,128.95,7.7548]
[1725251910149,7.7521,129.0,128.94,27.1438]
[1725251910533,7.7521,129.0,128.95,7.7548]
[1725251910728,1.54362612,128.99,128.95,7.7548]
[1725251911534,27.7514,129.01,128.95,7.7548]
[1725251911741,29.29502612,129.01,128.96,52.7541]
[1725251914358,29.29502612,129.01,128.94,19.3883]
[1725251914359,29.29502612,129.01,128.95,7.7549]
[1725251914745,32.07568351,129.0,128.95,7.7549]
[1725251914943,1.54362612,128.99,128.95,7.7549]
[1725251915346,9.29622612,128.99,128.94,19.3883]
[1725251915554,9.29622612,128.99,128.94,27.1435]
[1725251915855,1.54362612,128.99,128.94,27.1435]
[1725251916940,47.33518351,129.0,128.94,19.3883]
[1725251917259,1.54362612,128.99,128.9,15.1666]
[1725251917438,25.86710963,128.99,128.91,7.7569]
[1725251917641,24.32348351,128.97,128.92,7.7567]
[1725251917848,1.54362612,128.96,128.91,7.7572]
[1725251918060,1.54362612,128.97,128.9,19.3945]
[1725251918245,21.54362612,128.97,128.92,7.7567]
[1725251920161,29.29752612,128.97,128.92,7.7567]
[1725251920456,21.54362612,128.97,128.92,7.7567]
[1725251920656,24.32348351,129.0,128.92,19.3907]
[1725251920981,1.54362612,128.99,128.95,7.7544]
[1725251921261,1.54362612,129.0,128.95,7.7544]
[1725251922035,24.32348351,128.98,128.88,38.7937]
[1725251922235,24.32348351,128.98,128.89,45.0]
[1725251922236,1.54362612,128.97,128.89,45.0]
[1725251923342,1.54362612,128.97,128.93,7.756]
[1725251923744,21.54362612,128.98,128.94,7.7554]
[1725251924448,21.54362612,128.99,128.94,7.7554]
[1725251925659,1.54362612,128.99,128.95,45.0]
[1725251926260,1.54362612,128.99,128.95,7.7544]
[1725251926957,1.54362612,128.99,128.94,7.7552]
[1725251927262,1.54362612,128.99,128.93,19.3893]
[1725251927449,24.32348351,128.96,128.89,19.3952]
[1725251927763,29.29912612,128.95,128.89,27.1531]
[1725251927942,39.03554537,128.95,128.89,27.1531]
[1725251928344,0.12549,128.94,128.89,27.1531]
[1725251928552,1.54362612,128.93,128.89,27.1531]
[1725251928747,1.54362612,128.94,128.89,27.1531]
[1725251929279,9.73641925,128.93,128.89,27.1531]
[1725251929484,1.54362612,128.92,128.89,27.1531]
[1725251929969,1.54362612,128.93,128.89,27.1531]
[1725251930268,1.54362612,128.94,128.9,7.7578]
[1725251930437,1.54362612,128.97,128.93,7.7559]
[1725251930838,1.54362612,128.97,128.91,19.3922]
[1725251930839,24.34381198,128.96,128.91,19.3922]
[1725251931142,7.7562,128.93,128.88,27.1568]
[1725251931443,9.29852612,128.95,128.89,52.7583]
[1725251932365,0.12549,128.94,128.89,7.7585]
[1725251932566,21.54362612,128.95,128.9,7.7578]
[1725251932866,0.12549,128.94,128.9,7.7578]
[1725251933558,21.54362612,128.95,128.9,7.7578]
[1725251934667,21.54362612,128.95,128.91,7.7572]
[1725251936366,25.8874381,128.96,128.92,7.7566]
[1725251936553,1.54362612,128.96,128.92,7.7566]
[1725251937182,21.54362612,128.97,128.92,19.391]
[1725251937355,1.54362612,128.97,128.93,45.0]
[1725251938065,1.54362612,128.97,128.92,19.391]
[1725251938267,1.54362612,128.97,128.94,7.7555]
[1725251940352,1.54362612,128.97,128.92,27.1477]
[1725251940757,57.46441963,128.98,128.94,7.7553]
[1725251941065,1.54362612,128.97,128.94,7.7553]
[1725251941652,22.1189,129.02,128.95,45.0]
[1725251941971,1.54362612,129.01,128.95,45.0]
[1725251942343,1.54362612,129.01,128.96,7.7542]
[1725251942569,1.54362612,129.01,128.94,19.3879]
[1725251942570,32.09621198,129.0,128.94,19.3879]
[1725251942763,1.54362612,128.99,128.94,27.1429]
[1725251942976,1.54362612,128.99,128.94,19.3879]
[1725251943847,9.29622612,128.99,128.94,19.3879]
[1725251944164,1.54362612,128.99,128.94,27.143]
[1725251944757,1.54362612,128.99,128.95,7.7547]
[1725251945373,25.8874381,129.0,128.96,7.754]
[1725251946550,1.54362612,128.99,128.95,7.7547]
[1725251946957,25.8874381,129.0,128.95,7.7547]
[1725251947166,25.8874381,129.0,128.96,7.7542]
[1725251948162,22.4472,128.99,128.94,19.3879]
[1725251948352,22.4472,128.99,128.88,38.7954]
[1725251948353,7.7538,128.97,128.91,27.1503]
[1725251948552,9.29802612,128.96,128.91,27.1503]
[1725251948754,1.54362612,128.95,128.91,27.1503]
[1725251949752,9.29802612,128.96,128.91,27.1503]
[1725251949953,19.03261524,128.96,128.91,27.1503]
[1725251950376,11.27821524,128.96,128.92,7.7567]
[1725251950684,1.54362612,128.95,128.91,27.1503]
[1725251951485,9.29792612,128.96,128.91,27.1503]
[1725251952148,9.73458912,128.97,128.91,19.3931]
[1725251952349,9.29812612,128.96,128.91,27.1499]
[1725251952580,9.29742612,128.97,128.92,7.7565]
[1725251952774,7.7553,128.95,128.9,7.7573]
[1725251952952,9.29912612,128.94,128.89,7.7584]
[1725251953374,40.65121524,128.94,128.89,7.7584]
[1725251954763,23.16112612,128.94,128.88,19.3972]
[1725251954967,30.91672612,128.94,128.89,7.7585]
[1725251955764,23.16112612,128.94,128.9,7.7578]
[1725251956177,21.6175,128.94,128.9,7.7578]
[1725251956377,21.6175,128.94,128.91,7.7569]
[1725251956582,9.73458912,128.95,128.92,7.7566]
[1725251956770,42.18991524,128.97,128.92,7.7566]
[1725251957076,34.43611524,128.97,128.93,7.756]
[1725251957960,24.70152612,128.97,128.93,7.756]
[1725251959577,32.45542612,128.97,128.92,27.1474]
[1725251961183,7.7543,128.96,128.92,27.1474]
[1725251961392,1.54362612,128.95,128.92,27.1474]
[1725251961683,1.54362612,128.96,128.92,27.1474]
[1725251962076,30.9116,128.97,128.92,27.1474]
[1725251963163,30.9116,128.97,128.93,7.756]
[1725251963371,23.1579,128.97,128.93,7.756]
[1725251964059,10.05532988,129.0,128.97,7.7537]
[1725251964265,46.06433189,129.01,128.89,6.5863]
[1725251964465,7.7532,128.98,128.93,27.1451]
[1725251964666,32.08413189,128.99,128.94,7.7554]
[1725251965891,7.7532,128.98,128.94,7.7554]
[1725251966096,7.7532,128.98,128.93,27.1456]
[1725251966298,32.08413189,128.99,128.94,7.7555]
[1725251967589,32.08413189,128.99,128.95,7.7548]
[1725251967785,32.08533189,128.97,128.93,19.3896]
[1725251967991,22.3366,128.96,128.92,7.7567]
[1725251968370,22.3366,128.96,128.93,7.756]
[1725251968675,22.3366,128.96,128.94,7.7555]
[1725251968887,53.24333189,128.99,128.94,7.7555]
[1725251969065,45.49073189,128.99,128.95,7.7547]
[1725251974786,21.1592,128.99,128.95,7.7547]
[1725251974996,24.33153189,129.01,128.97,7.7537]
[1725251976301,32.08323189,129.01,128.96,7.7542]
[1725251978493,7.752,129.0,128.95,19.3865]
[1725251978795,7.752,129.0,128.95,27.1413]
[1725251980099,9.72917188,128.99,128.95,27.1413]
[1725251982573,22.6545,129.02,128.96,45.0]
[1725251982779,29.72917188,129.01,128.96,45.0]
[1725251983092,29.72917188,129.01,128.95,19.3865]
[1725251983294,37.48057188,129.01,128.96,7.7541]
[1725251984783,7.7522,129.0,128.95,27.1408]
[1725251985793,7.7522,129.0,128.96,7.7542]
[1725251986701,7.7526,128.99,128.95,27.1413]
[1725251986891,17.48177188,128.99,128.95,19.3865]
[1725251987304,17.48177188,128.99,128.95,27.1413]
[1725251987305,9.72917188,128.99,128.95,27.1413]
[1725251987508,9.72917188,128.99,128.96,7.7542]
[1725251987801,37.48047188,129.01,128.97,7.7536]
[1725251990483,29.72917188,129.01,128.98,7.753]
[1725251990990,20.0,129.01,128.98,7.753]
[1725251993212,22.6545,129.02,128.99,52.7525]
[1725251993386,9.72917188,129.03,129.0,7.7517]
[1725251994303,9.72917188,129.03,129.01,45.0]
[1725251996305,9.72917188,129.03,129.0,7.7517]
[1725251999120,9.72917188,129.03,129.01,45.0]
[1725251999610,9.72917188,129.1,129.01,60.599]
[1725252000403,17.47557188,129.1,129.05,7.7486]
[1725252001217,9.72917188,129.08,129.04,27.1221]
[1725252001921,22.0133,129.11,129.01,60.599]
[1725252001922,40.09167188,129.06,129.01,19.3778]
[1725252002115,32.34327188,129.06,129.02,7.7506]
[1725252002500,32.34327188,129.06,129.03,7.75]
[1725252002923,9.72917188,129.06,129.03,7.75]
[1725252003635,7.7472,129.08,129.03,7.75]
[1725252003916,20.0,129.07,129.04,7.7493]
[1725252005829,20.0,129.07,129.03,27.1245]
[1725252006128,20.0,129.07,129.04,52.7495]
[1725252006418,22.6141,129.09,129.05,20.92084282]
[1725252006615,22.6141,129.09,129.06,45.0]
[1725252007308,22.6141,129.09,129.06,52.7478]
[1725252008011,22.6141,129.09,129.07,1.54935142]
[1725252008211,9.72917188,129.1,129.07,7.7477]
[1725252009728,19.359,129.14,129.07,7.7477]
[1725252009729,31.66487432,129.15,129.08,1.54924068]
[1725252009941,22.1151,129.15,129.11,7.7452]
[1725252010224,31.84427188,129.15,129.11,7.7452]
[1725252010538,9.72917188,129.13,129.1,7.7457]
[1725252013540,9.72917188,129.13,129.06,64.3701]
[1725252013731,9.72917188,129.11,129.06,19.3701]
[1725252014433,22.1151,129.15,129.06,19.3701]
[1725252014728,9.72917188,129.1,129.07,7.7477]
[1725252014920,9.72917188,129.1,129.06,27.1182]
[1725252015416,17.47627188,129.08,129.04,7.749]
[1725252015627,9.72917188,129.06,129.03,19.3746]
[1725252015817,9.72917188,129.07,129.03,19.3746]
[1725252016336,9.72917188,129.07,129.03,27.1247]
[1725252018034,32.04074523,129.08,129.03,27.1247]
[1725252018230,32.04074523,129.08,129.04,52.7495]
[1725252018546,54.67734523,129.1,129.05,7.7488]
[1725252018831,20.0,129.09,129.04,7.7493]
[1725252019035,7.7472,129.08,129.04,7.7493]
[1725252020010,20.0,129.09,129.05,7.7488]
[1725252023212,20.0,129.09,129.06,52.7477]
[1725252023632,22.6379,129.1,129.06,52.7477]
[1725252026933,54.67754523,129.1,129.06,45.0]
[1725252029715,24.29354523,129.1,129.06,52.748]
[1725252030324,7.7454,129.11,129.06,52.748]
[1725252030539,20.0,129.1,129.06,52.748]
[1725252031820,27.746,129.1,129.06,52.748]
[1725252033238,20.0,129.1,129.06,52.748]
[1725252033439,20.0,129.1,129.08,7.747]
[1725252033647,21.6777,129.13,129.09,54.29516281]
[1725252034024,21.6777,129.13,129.09,52.746]
[1725252034323,32.03704523,129.14,129.09,52.746]
[1725252034743,32.03704523,129.14,129.1,7.7457]
[1725252034950,55.83461955,129.16,129.11,45.0]
[1725252035235,55.83461955,129.16,129.09,64.3655]
[1725252036219,20.0,129.15,129.09,64.3655]
[1725252036424,20.0,129.15,129.11,7.7453]
[1725252036626,20.0,129.15,129.12,45.0]
[1725252037746,24.29354523,129.18,129.12,45.0]
[1725252037918,21.9913,129.19,129.12,45.0]
[1725252037919,9.70393048,129.16,129.12,45.0]
[1725252038118,9.70393048,129.16,129.13,7.744]
[1725252038741,9.70393048,129.14,129.11,19.3622]
[1725252043242,17.44623048,129.16,129.11,27.1074]
[1725252043433,20.0,129.15,129.12,45.0]
[1725252045225,20.0,129.15,129.12,52.7445]
[1725252045449,17.44573048,129.17,129.12,54.29313537]
[1725252045630,17.44573048,129.17,129.12,52.7445]
[1725252045631,20.0,129.16,129.12,52.7445]
[1725252046330,9.70393048,129.15,129.12,52.7445]
[1725252046530,27.7423,129.16,129.12,52.7445]
[1725252050327,27.7423,129.16,129.12,45.0]
[1725252050541,9.70393048,129.15,129.12,45.0]
[1725252052433,9.70393048,129.13,129.06,16.0696]
[1725252052763,9.70393048,129.11,129.07,7.7477]
[1725252053638,9.70393048,129.11,129.06,7.7478]
[1725252054856,9.70393048,129.11,129.05,19.3714]
[1725252054857,9.70393048,129.09,129.05,19.3714]
[1725252055033,7.7483,129.06,129.02,254.2]
[1725252055232,20.0,129.16,129.06,19.3704]
[1725252055541,9.70393048,129.1,129.06,27.1187]
[1725252056242,9.70393048,129.1,129.02,19.3754]
[1725252056456,9.70393048,129.1,129.03,45.0]
[1725252056651,9.70393048,129.1,129.06,7.7483]
[1725252056834,9.70393048,129.1,129.07,52.7471]
[1725252060060,9.70393048,129.12,129.07,52.7471]
[1725252060237,20.0,129.11,129.07,52.7471]
[1725252060639,20.0,129.11,129.08,7.747]
[1725252062260,9.70393048,129.1,129.06,19.3697]
[1725252062633,9.70393048,129.1,129.06,27.118]
[1725252063161,17.44993048,129.1,129.06,19.3697]
[1725252064477,17.44993048,129.1,129.06,27.118]
[1725252064849,17.44993048,129.1,129.06,19.3697]
[1725252065346,9.70393048,129.08,129.04,7.7495]
[1725252066648,9.70393048,129.08,129.03,19.3747]
[1725252066649,9.70393048,129.08,129.05,52.7488]
[1725252066968,20.0,129.09,129.05,52.7488]
[1725252067443,20.0,129.09,129.07,7.7474]
[1725252067644,20.0,129.09,129.08,45.0]
[1725252068036,20.0,129.09,129.07,7.7474]
[1725252070270,9.70393048,129.1,129.07,7.7474]
[1725252070571,9.70393048,129.1,129.08,7.7471]
[1725252070774,22.0913,129.14,129.07,19.3684]
[1725252070982,22.0913,129.14,129.1,7.7458]
[1725252071273,9.70393048,129.13,129.1,7.7458]
[1725252072278,9.70393048,129.13,129.09,27.1119]
[1725252072482,9.70393048,129.13,129.08,52.7469]
[1725252072668,9.70393048,129.11,129.08,45.0]
[1725252072968,9.70393048,129.11,129.07,7.7477]
[1725252073773,9.70393048,129.11,129.06,27.1181]
[1725252073774,9.70393048,129.09,129.06,27.1181]
[1725252074069,9.70393048,129.09,129.05,7.7488]
[1725252075080,9.70393048,129.09,129.06,7.748]
[1725252075244,9.70393048,129.11,129.06,52.748]
[1725252075449,20.0,129.1,129.07,7.7475]
[1725252075869,20.0,129.1,129.08,45.0]
[1725252076276,20.0,129.1,129.08,52.747]
[1725252076459,9.70393048,129.11,129.08,52.747]
[1725252077175,17.44803048,129.13,129.09,7.7464]
[1725252077554,9.70393048,129.13,129.09,7.7464]
[1725252077757,7.7436,129.14,129.09,7.7464]
[1725252077963,9.70393048,129.13,129.1,1.54893272]
[1725252078164,9.70393048,129.13,129.09,7.7464]
[1725252079677,9.70393048,129.13,129.1,45.0]
[1725252079977,9.70393048,129.13,129.1,52.7457]
[1725252083461,7.7418,129.17,129.11,20.91128659]
[1725252083660,9.70393048,129.16,129.12,45.0]
[1725252083857,9.70393048,129.16,129.13,1.54857787]
[1725252085180,9.70393048,129.14,129.08,19.3676]
[1725252085486,9.70393048,129.1,129.08,19.3676]
[1725252086126,32.02725464,129.12,129.08,19.3676]
[1725252086769,32.02725464,129.12,129.08,27.1147]
[1725252086968,24.28215464,129.1,129.03,5.64462669]
[1725252087274,32.02975464,129.08,129.02,42.3]
[1725252089463,32.02975464,129.08,129.03,52.75]
[1725252089678,24.28215464,129.08,129.03,45.0]
[1725252091370,24.28215464,129.08,129.03,52.75]
[1725252092779,7.7467,129.09,129.04,7.7492]
[1725252093100,20.0,129.08,129.05,52.7488]
[1725252093398,20.0,129.09,129.06,7.7483]
[1725252093703,52.02795464,129.11,129.05,52.7488]
[1725252093704,7.746,129.1,129.05,52.7488]
[1725252093906,20.0,129.09,129.05,52.7488]
[1725252094598,27.7467,129.09,129.04,27.1221]
[1725252096306,27.7467,129.09,129.05,45.0]
[1725252100014,27.7467,129.09,129.05,52.7489]
[1725252100592,27.7467,129.09,129.05,7.7489]
[1725252101707,20.0,129.09,129.06,7.7481]
[1725252101890,20.0,129.09,129.07,45.0]
[1725252102091,20.0,129.1,129.07,45.0]
[1725252104024,27.7459,129.1,129.06,7.7481]
[1725252105203,20.0,129.1,129.07,45.0]
[1725252105804,7.7449,129.12,129.08,7.747]
[1725252106001,20.0,129.11,129.08,7.747]
[1725252110009,20.0,129.11,129.07,45.0]
[1725252110010,7.7424,129.16,129.11,7.7448]
[1725252110211,38.23615464,129.17,129.12,52.7445]
[1725252111519,20.0,129.16,129.12,52.7445]
[1725252113927,20.0,129.16,129.1,19.3636]
[1725252113928,27.7428,129.16,129.11,7.7452]
[1725252114134,24.28215464,129.15,129.11,7.7452]
[1725252115018,32.02505464,129.15,129.1,27.1095]
[1725252117137,32.02505464,129.15,129.11,7.7452]
[1725252118212,27.7424,129.16,129.11,7.7452]
[1725252118729,27.7424,129.16,129.12,7.7446]
[1725252119932,27.7424,129.16,129.11,7.7451]
[1725252120134,27.7424,129.16,129.12,45.0]
[1725252121310,27.7424,129.16,129.1,19.3636]
[1725252121311,7.7431,129.15,129.1,27.1093]
[1725252122132,9.70736689,129.14,129.1,27.1093]
[1725252124541,9.70736689,129.12,129.07,19.3686]
[1725252124749,9.70736689,129.12,129.08,7.7466]
[1725252125041,9.70736689,129.12,129.09,7.7464]
[1725252127546,9.70736689,129.1,129.04,19.3734]
[1725252127723,9.70736689,129.08,129.04,27.1223]
[1725252129650,9.70736689,129.08,129.05,7.7488]
[1725252129840,21.8944,129.11,129.04,19.3734]
[1725252129841,17.45326689,129.1,129.04,19.3734]
[1725252130031,20.0,129.09,129.04,19.3734]
[1725252130234,20.0,129.09,129.05,45.0]
[1725252131445,20.0,129.09,129.06,7.7482]
[1725252131624,17.45326689,129.1,129.07,45.0]
[1725252131625,9.70736689,129.1,129.07,45.0]
[1725252132024,29.6397,129.11,129.07,45.0]
[1725252132246,20.0,129.1,129.07,45.0]
[1725252132423,7.7448,129.12,129.07,45.0]
[1725252132624,32.0227445,129.13,129.08,7.747]
[1725252133249,33.82831882,129.13,129.06,19.3701]
[1725252133444,7.7453,129.11,129.06,27.1179]
[1725252134826,7.7448,129.12,129.07,7.7475]
[1725252135027,20.0,129.11,129.07,7.7475]
[1725252136552,52.0240445,129.11,129.06,27.1183]
[1725252140652,52.0240445,129.11,129.07,7.7476]
[1725252140853,44.2785445,129.11,129.07,7.7476]
[1725252141059,44.2785445,129.11,129.08,45.0]
[1725252141060,20.0,129.11,129.08,45.0]
[1725252141263,20.0,129.12,129.08,45.0]
[1725252141935,27.7451,129.12,129.07,7.7476]
[1725252146175,27.7451,129.12,129.08,45.0]
[1725252147063,7.7453,129.11,129.08,45.0]
[1725252147536,7.7453,129.11,129.07,45.0]
[1725252148474,7.746,129.1,129.07,45.0]
[1725252151960,17.45912967,129.1,129.07,45.0]
[1725252152667,9.71312967,129.1,129.07,45.0]
[1725252153558,7.7454,129.11,129.07,45.0]
[1725252156775,17.45912967,129.1,129.07,45.0]
[1725252157267,7.7465,129.09,129.07,45.0]
[1725252157464,17.45912967,129.1,129.07,45.0]
[1725252157771,9.71312967,129.1,129.06,45.0]
[1725252158272,9.71312967,129.1,129.06,52.7481]
[1725252158476,27.7448,129.12,129.07,7.7475]
[1725252158655,37.45792967,129.12,129.08,45.0]
[1725252160045,9.71312967,129.1,129.05,19.3717]
[1725252160843,9.71312967,129.1,129.05,27.1202]
[1725252161464,9.71312967,129.1,129.06,45.0]
[1725252163960,9.71312967,129.1,129.06,52.7482]
[1725252168459,7.7454,129.11,129.06,52.7482]
[1725252168757,20.0,129.1,129.06,52.7482]
[1725252169863,20.0,129.1,129.07,7.7477]
[1725252170062,20.0,129.1,129.08,45.0]
[1725252170271,20.0,129.11,129.08,45.0]
[1725252171990,32.44772967,129.14,129.09,1.54913101]
[1725252172152,32.44772967,129.14,129.08,45.0]
[1725252173274,17.45792967,129.12,129.07,19.3687]
[1725252173449,20.0,129.11,129.07,19.3687]
[1725252174292,20.0,129.11,129.07,27.1164]
[1725252174754,9.71312967,129.1,129.05,9.10575504]
[1725252174954,9.71312967,129.1,129.04,19.373]
[1725252175682,9.71312967,129.1,129.05,9.10604653]
[1725252175871,17.45962967,129.1,129.05,9.10604653]
[1725252176210,20.0,129.09,129.05,9.10604653]
[1725252176360,20.0,129.09,129.04,27.1223]
[1725252177384,27.7465,129.09,129.05,54.10609002]
[1725252177584,27.7465,129.09,129.05,45.0]
[1725252177788,20.0,129.09,129.05,61.85468767]
[1725252178168,20.0,129.09,129.05,52.7486]
[1725252180861,20.0,129.09,129.06,7.7481]
[1725252181063,29.71312967,129.1,129.07,45.0]
[1725252181268,37.45902967,129.1,129.07,45.0]
[1725252181470,37.45902967,129.1,129.06,45.0]
[1725252183173,7.7485,129.06,129.01,27.129]
[1725252183380,9.71312967,129.06,129.02,7.7506]
[1725252185368,9.71312967,129.06,129.01,27.1289]
[1725252185598,9.71312967,129.06,129.01,19.3777]
[1725252185888,9.71312967,129.04,128.99,7.7523]